bitfinex/quotes_ETHUSD_20250219
["timestamp","ask_amount","ask_price","bid_price","bid_amount"]
[1739978882316,3.57066572,2693.7,2693.1,0.3]
[1739978882526,0.0712,2693.7,2693.2,4.47601]
[1739978882833,0.0712,2693.7,2693.3,3.71278]
[1739978883028,0.0712,2693.7,2693.5,3.71252]
[1739978883432,0.0712,2693.7,2693.6,4.531]
[1739978883594,0.0712,2693.7,2693.6,5.39247345]
[1739978883795,0.0712,2693.7,2693.6,5.355352]
[1739978884915,0.0712,2693.7,2693.6,5.39247104]
[1739978885257,0.0712,2693.7,2693.6,5.355352]
[1739978886007,0.0712,2693.7,2693.6,6.08951255]
[1739978886618,0.0712,2693.7,2693.6,14.48662774]
[1739978886836,0.0712,2693.7,2693.6,14.44951255]
[1739978887435,0.0712,2693.7,2693.6,14.99951255]
[1739978888497,4.49331,2695.3,2694.5,3.71115]
[1739978888732,6.13058757,2695.3,2694.6,4.7662]
[1739978889027,0.7831,2695.3,2694.7,3.71091]
[1739978889333,3.71004,2695.4,2694.7,3.71091]
[1739978889633,3.71038,2695.2,2694.6,1.0551]
[1739978889833,3.71038,2695.2,2694.6,4.7662]
[1739978890008,3.71018,2695.3,2694.7,0.847736]
[1739978890228,3.7105,2695.1,2694.6,1.0551]
[1739978891329,3.71029,2695.2,2694.6,4.7662]
[1739978891532,3.7102,2695.3,2694.6,4.7662]
[1739978891851,3.70989,2695.5,2694.8,3.71074]
[1739978892357,3.71005,2695.4,2694.8,3.71074]
[1739978892567,3.71005,2695.4,2694.9,0.371074]
[1739978893208,0.7533,2695.6,2694.9,0.371074]
[1739978893409,3.70952,2695.8,2695.2,3.71024]
[1739978893662,4.52461,2695.9,2695.2,3.71024]
[1739978894140,4.52461,2695.9,2695.3,3.71013]
[1739978894303,3.70926,2696.0,2695.5,0.8157]
[1739978894508,4.52425,2696.2,2695.6,0.3]
[1739978894711,3.70928,2696.0,2695.6,0.3]
[1739978894905,3.70906,2696.1,2695.6,0.3]
[1739978895512,3.7092,2696.0,2695.6,0.3]
[1739978895709,3.70934,2695.9,2695.6,0.3]
[1739978896234,3.7092,2696.0,2695.6,0.3]
[1739978896638,0.43146657,2696.2,2695.6,4.00961]
[1739978896823,4.30746572,2696.5,2695.6,4.00961]
[1739978896824,0.808,2696.5,2695.6,1.153524]
[1739978897023,3.70893,2696.2,2695.6,1.153524]
[1739978897343,3.70878,2696.3,2695.6,8.572914]
[1739978897528,3.70878,2696.3,2695.6,8.572854]
[1739978897727,3.70908,2696.1,2695.6,1.153524]
[1739978897930,3.70921,2696.0,2695.6,0.3]
[1739978898256,11.01600572,2696.5,2695.6,0.3]
[1739978898257,3.70949,2695.8,2695.6,0.3]
[1739978898758,3.70974,2695.6,2695.3,5.36]
[1739978898975,3.70974,2695.6,2695.4,0.3]
[1739978899328,0.7705,2696.0,2695.4,0.3]
[1739978899329,3.70934,2695.9,2695.4,0.3]
[1739978899662,3.70947,2695.8,2695.4,0.3]
[1739978900067,3.70941,2695.9,2695.4,0.3]
[1739978900370,4.47977,2696.0,2695.4,0.3]
[1739978900551,3.7094,2695.9,2695.4,0.3]
[1739978900949,4.49018,2696.3,2695.6,3.70964]
[1739978901125,7.41804,2696.2,2695.7,0.804]
[1739978901512,3.70921,2696.0,2695.7,0.804]
[1739978901673,5.65999257,2696.3,2695.5,0.8248]
[1739978901823,0.7837,2696.7,2695.5,0.8248]
[1739978902026,3.49946572,2696.5,2695.5,6.1848]
[1739978902237,3.70925,2696.0,2695.5,6.1848]
[1739978902643,3.70912,2696.1,2695.5,6.1848]
[1739978902873,3.49946572,2696.5,2695.5,6.1848]
[1739978902874,3.70871,2696.4,2695.5,6.1848]
[1739978903024,3.70933,2695.9,2695.5,6.1848]
[1739978903438,3.70954,2695.8,2695.5,6.1848]
[1739978903672,3.70954,2695.8,2695.6,0.3]
[1739978903874,3.70927,2696.0,2695.6,0.3]
[1739978904074,4.72970757,2696.3,2695.7,0.8096]
[1739978904368,3.70902,2696.2,2695.7,0.8096]
[1739978904671,3.7094,2695.9,2695.8,0.3]
[1739978905804,3.70921,2696.0,2695.7,0.3]
[1739978906001,4.46066,2696.1,2695.7,0.3]
[1739978906165,5.277627,2696.1,2695.7,0.3]
[1739978906521,4.526097,2696.1,2695.7,0.3]
[1739978906687,3.0,2696.3,2695.7,0.3]
[1739978907007,3.70913,2696.1,2695.7,0.3]
[1739978907179,3.70947,2695.8,2695.7,0.3]
[1739978907498,7.41885,2695.9,2695.7,0.3]
[1739978907703,3.70947,2695.8,2695.7,0.3]
[1739978908273,3.70941,2695.9,2695.7,0.3]
[1739978908477,3.70947,2695.8,2695.4,0.7567]
[1739978908678,4.080331,2695.9,2695.5,0.3]
[1739978908898,3.70916,2696.1,2695.5,0.3]
[1739978909267,3.70928,2696.0,2695.5,0.3]
[1739978909892,3.70934,2695.9,2695.5,0.3]
[1739978910395,3.70934,2695.9,2695.4,0.7567]
[1739978910705,3.70934,2695.9,2695.5,0.3]
[1739978910883,4.080274,2695.9,2695.4,0.7567]
[1739978911085,3.70947,2695.8,2695.6,0.3]
[1739978911404,7.789714,2695.9,2695.6,0.3]
[1739978911710,4.080314,2695.9,2695.6,0.3]
[1739978911897,0.370934,2695.9,2695.6,0.3]
[1739978912206,3.70903,2696.2,2695.6,0.3]
[1739978912207,3.709,2696.2,2695.6,0.3]
[1739978912508,3.70933,2696.0,2695.6,0.3]
[1739978912910,3.70901,2696.2,2695.6,0.3]
[1739978913215,3.70895,2696.2,2695.7,0.7931]
[1739978913395,3.70908,2696.1,2695.7,0.7931]
[1739978913570,3.0,2696.3,2695.7,0.7931]
[1739978913774,3.70913,2696.1,2695.7,0.7931]
[1739978914412,0.838,2696.2,2695.7,0.7931]
[1739978914609,10.41775,2696.3,2695.7,0.7931]
[1739978914816,3.70887,2696.3,2695.7,0.7931]
[1739978915010,5.38,2696.4,2695.7,0.7931]
[1739978915311,0.538,2696.3,2695.7,4.50269]
[1739978915480,9.08872,2696.4,2695.7,8.21221]
[1739978915678,5.38,2696.4,2695.8,3.70934]
[1739978916013,6.70847,2696.6,2695.9,4.50237]
[1739978916210,0.8268,2696.9,2696.1,3.70905]
[1739978916211,3.70803,2696.9,2696.1,3.70905]
[1739978916547,3.70774,2697.1,2696.3,0.8024]
[1739978916719,3.70798,2696.9,2696.4,0.3]
[1739978917223,6.70789,2697.0,2696.4,0.3]
[1739978917513,3.70742,2697.3,2696.6,0.7703]
[1739978917737,5.38,2697.7,2696.8,3.70809]
[1739978917911,5.38,2697.7,2697.0,3.70778]
[1739978918083,9.08689,2697.7,2696.9,0.447839]
[1739978918293,9.08689,2697.7,2696.8,0.7703]
[1739978918294,3.7073,2697.4,2696.8,0.7703]
[1739978919226,3.70741,2697.3,2696.8,0.7703]
[1739978919539,7.41494,2697.3,2696.8,0.7703]
[1739978919685,4.448904,2697.3,2696.8,0.7703]
[1739978919984,4.448954,2697.3,2696.8,0.7703]
[1739978920184,3.70818,2696.8,2696.7,0.3]
[1739978920893,3.70818,2696.8,2696.5,5.36]
[1739978920894,3.70837,2696.6,2696.5,5.36]
[1739978921136,3.70864,2696.4,2696.3,0.3]
[1739978921438,3.70837,2696.6,2696.3,0.3]
[1739978921632,7.41685,2696.6,2696.3,0.3]
[1739978921851,3.70864,2696.4,2696.3,0.3]
[1739978922738,0.821865,2696.6,2696.3,0.3]
[1739978923033,3.70864,2696.4,2696.3,0.3]
[1739978923335,3.70884,2696.3,2696.1,0.3]
[1739978923502,7.4177,2696.3,2696.1,0.3]
[1739978924046,3.70892,2696.2,2696.0,0.3]
[1739978924284,0.74177,2696.3,2696.0,0.3]
[1739978924457,3.70883,2696.3,2696.0,0.3]
[1739978924968,3.70878,2696.4,2696.0,0.3]
[1739978925720,7.41754,2696.4,2696.0,0.3]
[1739978925916,3.70895,2696.2,2696.0,0.3]
[1739978926123,3.70873,2696.4,2696.0,0.3]
[1739978926316,3.70879,2696.3,2696.0,0.3]
[1739978926717,4.47122,2696.5,2696.0,0.3]
[1739978926966,3.70901,2696.2,2696.0,0.3]
[1739978927168,3.70891,2696.3,2696.0,0.3]
[1739978927317,3.70906,2696.1,2696.0,0.3]
[1739978927718,3.70984,2695.6,2695.4,1.50926455]
[1739978927929,12.08864,2696.4,2695.1,0.7504]
[1739978927930,3.71016,2695.3,2695.1,0.7504]
[1739978928156,3.71016,2695.3,2695.2,8.638]
[1739978928333,3.70977,2695.6,2695.2,8.638]
[1739978928543,3.70964,2695.7,2695.2,8.638]
[1739978928753,3.70957,2695.8,2695.2,9.4212]
[1739978928930,3.70961,2695.7,2695.2,9.4212]
[1739978929131,3.70957,2695.8,2695.2,9.4212]
[1739978929328,5.38,2695.9,2695.2,14.444658]
[1739978929587,5.38,2695.9,2695.4,3.71]
[1739978929738,3.70908,2696.1,2695.4,3.71]
[1739978929739,3.70898,2696.2,2695.4,3.71]
[1739978929940,0.8169,2696.3,2695.6,3.70963]
[1739978930135,3.70881,2696.3,2695.7,0.7748]
[1739978930405,3.70881,2696.3,2695.7,1.223243]
[1739978931174,3.70899,2696.2,2695.7,1.223243]
[1739978931382,3.70881,2696.3,2695.7,1.223243]
[1739978931569,3.70905,2696.2,2695.7,1.223243]
[1739978931748,3.70905,2696.2,2695.7,0.7748]
[1739978932948,3.70913,2696.1,2695.7,0.7748]
[1739978933152,3.70919,2696.0,2695.7,0.7748]
[1739978933349,3.70913,2696.1,2695.7,0.7748]
[1739978934244,3.70922,2696.0,2695.7,0.7748]
[1739978934560,3.70888,2696.3,2695.7,0.7748]
[1739978934771,3.709,2696.2,2695.7,0.7748]
[1739978935084,8.59200276,2696.6,2695.7,4.932805]
[1739978935247,3.0,2696.4,2695.8,3.70944]
[1739978935467,6.70873,2696.4,2695.7,8.642345]
[1739978936099,3.0,2696.4,2695.8,3.70946]
[1739978936298,3.7764,2696.6,2695.9,4.5735365]
[1739978936454,3.70844,2696.6,2696.0,0.3]
[1739978936657,3.70844,2696.6,2696.1,0.8286]
[1739978937286,3.70858,2696.5,2696.1,0.8286]
[1739978937671,3.70844,2696.6,2696.1,0.8286]
[1739978937873,3.0,2696.7,2696.2,0.483779]
[1739978938092,6.70833,2696.7,2696.2,0.483779]
[1739978938661,3.70803,2696.9,2696.2,0.483779]
[1739978939001,3.7083,2696.7,2696.2,0.483779]
[1739978939238,3.70846,2696.6,2696.2,0.483779]
[1739978939565,3.70855,2696.5,2696.1,0.8286]
[1739978940000,3.70835,2696.7,2696.1,0.8286]
[1739978940183,3.7082,2696.8,2696.1,4.53754]
[1739978940390,3.27331646,2697.1,2696.2,3.70885]
[1739978940562,3.27331646,2697.1,2696.1,0.8286]
[1739978940758,3.70826,2696.7,2696.1,4.53765]
[1739978940963,3.70796,2696.9,2696.2,3.74598597]
[1739978941356,0.8013,2697.2,2696.4,0.7585]
[1739978941589,3.70796,2696.9,2696.4,0.7585]
[1739978941784,3.70768,2697.1,2696.4,0.7585]
[1739978941983,3.70768,2697.1,2696.5,0.44672]
[1739978942603,3.0,2697.2,2696.6,3.70829]
[1739978942805,3.0,2697.2,2696.5,0.44672]
[1739978943003,3.70816,2696.8,2696.4,0.7585]
[1739978943600,3.7079,2697.0,2696.4,0.7585]
[1739978943799,3.70803,2696.9,2696.4,0.7585]
[1739978944360,3.70851,2696.5,2696.3,0.3]
[1739978944564,3.70836,2696.7,2696.3,0.3]
[1739978944804,3.70823,2696.7,2696.3,0.3]
[1739978945068,3.70864,2696.4,2696.3,0.3]
[1739978945773,6.70864,2696.4,2696.3,0.3]
[1739978951305,3.70864,2696.4,2696.3,0.3]
[1739978956442,3.70852,2696.5,2696.3,0.3]
[1739978956659,3.70834,2696.7,2696.3,0.3]
[1739978956815,3.70826,2696.7,2696.3,0.3]
[1739978957014,5.4792,2696.8,2696.3,0.3]
[1739978957244,9.18731,2696.8,2696.4,0.475952]
[1739978957448,5.4792,2696.8,2696.4,0.475952]
[1739978957650,3.70823,2696.7,2696.5,0.3]
[1739978957950,9.18741,2696.8,2696.5,0.3]
[1739978958152,3.70823,2696.7,2696.5,0.3]
[1739978958358,9.18734,2696.8,2696.5,0.3]
[1739978958553,5.4792,2696.8,2696.6,0.8248]
[1739978958741,9.18731,2696.8,2696.6,0.8248]
[1739978959139,5.4792,2696.8,2696.6,0.8248]
[1739978959533,5.4792,2696.8,2696.6,1.308142]
[1739978959730,3.70823,2696.7,2696.6,0.8248]
[1739978959929,3.70823,2696.7,2695.9,3.28430261]
[1739978960123,3.70865,2696.4,2696.3,0.8297]
[1739978961132,3.70845,2696.6,2696.3,0.8297]
[1739978961343,0.0992,2696.8,2696.3,0.8297]
[1739978961665,3.70885,2696.3,2696.0,6.4499]
[1739978961878,3.70885,2696.3,2696.0,7.09489]
[1739978962646,3.80732,2696.8,2696.0,7.09489]
[1739978962970,3.70903,2696.2,2696.0,6.4499]
[1739978963153,3.70879,2696.3,2696.0,6.4499]
[1739978963555,3.70899,2696.2,2696.0,6.4499]
[1739978963863,3.70879,2696.3,2696.0,6.4499]
[1739978964058,0.0992,2696.8,2696.0,6.4499]
[1739978964266,0.0992,2696.8,2696.0,11.545931]
[1739978964600,3.70865,2696.4,2696.0,7.836761]
[1739978964896,3.70858,2696.5,2696.0,7.836761]
[1739978965491,3.70886,2696.3,2696.0,7.836761]
[1739978965699,3.70855,2696.5,2696.0,6.4499]
[1739978965897,3.70866,2696.4,2696.0,6.4499]
[1739978967081,3.70883,2696.3,2696.0,6.4499]
[1739978967410,3.70895,2696.2,2696.0,6.4499]
[1739978967970,3.70865,2696.4,2696.0,6.4499]
[1739978968197,3.70853,2696.5,2696.0,7.465834]
[1739978968507,3.70853,2696.5,2696.0,11.175014]
[1739978969001,3.80739,2696.8,2696.2,0.7945]
[1739978969170,0.0992,2696.8,2696.3,3.70866]
[1739978969375,0.0992,2696.8,2696.5,0.8043]
[1739978969577,3.8073,2696.8,2696.5,0.8043]
[1739978970202,0.0992,2696.8,2696.5,0.8043]
[1739978970612,3.70824,2696.7,2696.5,0.8043]
[1739978971504,3.80731,2696.8,2696.5,0.8043]
[1739978971888,0.0992,2696.8,2696.5,0.8043]
[1739978972379,3.7083,2696.7,2696.5,1.255598]
[1739978972682,3.7083,2696.7,2696.5,0.8043]
[1739978972871,3.70855,2696.5,2696.3,0.777]
[1739978973071,3.70824,2696.7,2696.4,0.299]
[1739978973407,3.70838,2696.6,2696.3,0.777]
[1739978973569,3.70878,2696.3,2696.2,5.36]
[1739978974008,3.70848,2696.6,2696.2,5.659]
[1739978974214,3.7087,2696.4,2696.2,5.659]
[1739978974367,3.70878,2696.3,2696.2,5.659]
[1739978974984,3.70857,2696.5,2696.2,5.659]
[1739978975395,0.0992,2696.8,2696.2,5.659]
[1739978975396,3.70873,2696.4,2696.2,5.659]
[1739978975986,3.8073,2696.8,2696.2,5.659]
[1739978976320,3.70878,2696.3,2696.2,5.659]
[1739978977492,3.70873,2696.4,2696.2,5.659]
[1739978977715,3.70878,2696.3,2696.2,5.659]
[1739978978020,7.4175,2696.4,2696.2,5.659]
[1739978978219,3.70873,2696.4,2696.2,5.659]
[1739978978582,3.70878,2696.3,2696.2,0.299]
[1739978981524,3.70919,2696.0,2695.9,5.36]
[1739978981826,3.70917,2696.1,2695.9,5.659]
[1739978982120,3.70919,2696.0,2695.9,5.659]
[1739978982485,3.70919,2696.0,2695.9,5.36]
[1739978982687,3.70933,2695.9,2695.8,0.299]
[1739978983499,3.70919,2696.0,2695.8,0.299]
[1739978984110,3.70933,2695.9,2695.8,0.299]
[1739978985317,3.70947,2695.8,2695.4,0.7891]
[1739978985625,3.70947,2695.8,2695.5,0.299]
[1739978985989,3.70933,2695.9,2695.5,0.299]
[1739978986209,3.70947,2695.8,2695.5,0.299]
[1739978986611,3.70925,2696.0,2695.5,0.299]
[1739978986812,3.70939,2695.9,2695.4,7.09041319]
[1739978987003,3.70939,2695.9,2695.6,0.299]
[1739978987531,3.70934,2695.9,2695.6,0.299]
[1739978987924,3.7096,2695.8,2695.6,0.299]
[1739978988626,3.70933,2696.0,2695.6,0.299]
[1739978988802,7.41877,2695.9,2695.6,0.299]
[1739978989214,3.70935,2695.9,2695.6,0.299]
[1739978989530,3.70935,2695.9,2695.6,0.72935566]
[1739978989732,3.7092,2696.0,2695.6,0.72935566]
[1739978990411,3.709,2696.2,2695.7,4.46909]
[1739978990620,3.70878,2696.3,2695.7,4.46909]
[1739978991147,3.70902,2696.2,2695.7,4.46909]
[1739978991799,3.70902,2696.2,2695.7,0.7595]
[1739978992034,3.70909,2696.1,2695.7,0.7595]
[1739978992237,3.7092,2696.0,2695.8,0.476823]
[1739978992423,3.7092,2696.0,2695.7,0.7595]
[1739978992944,3.70934,2695.9,2695.7,0.7595]
[1739978993602,3.70931,2696.0,2695.7,6.1195]
[1739978993946,3.70901,2696.2,2695.7,6.1195]
[1739978994113,3.7092,2696.0,2695.7,6.1195]
[1739978994316,3.7092,2696.0,2695.7,7.132335]
[1739978995150,3.4928504,2696.6,2695.7,7.132335]
[1739978995309,7.41799,2696.2,2695.7,7.132335]
[1739978995496,3.70897,2696.2,2695.7,7.132335]
[1739978995704,3.70881,2696.3,2695.7,10.841845]
[1739978996009,3.70893,2696.2,2695.8,1.4850505]
[1739978996195,3.70908,2696.1,2695.8,1.4850505]
[1739978996398,3.70893,2696.2,2695.8,1.4850505]
[1739978996634,3.70875,2696.4,2695.8,1.4850505]
[1739978996798,3.70892,2696.2,2695.8,1.4850505]
[1739978996999,3.70911,2696.1,2695.7,6.1195]
[1739978998001,3.70919,2696.0,2695.7,6.1195]
[1739978998400,3.4928504,2696.3,2695.7,6.1195]
[1739978998603,3.70947,2695.8,2695.7,5.36]
[1739978998814,3.70976,2695.6,2695.4,0.8113]
[1739978999030,3.70985,2695.6,2695.5,0.299]
[1739979000029,3.70985,2695.6,2695.4,0.299]
[1739979000350,3.70988,2695.5,2695.4,0.299]
[1739979000715,3.71016,2695.3,2695.2,8.338]
[1739979001103,0.79589004,2695.5,2695.2,8.338]
[1739979001297,3.4928504,2695.9,2695.2,9.1174]
[1739979001499,3.4928504,2696.2,2695.4,3.70994]
[1739979001855,7.41768,2696.3,2695.7,0.8206]
[1739979002152,3.0,2696.4,2695.8,0.453027]
[1739979002359,3.0,2696.4,2695.9,0.299]
[1739979002504,3.70878,2696.3,2695.9,0.299]
[1739979002956,3.70892,2696.2,2695.9,0.299]
[1739979003148,3.70878,2696.3,2695.9,0.299]
[1739979003520,3.70893,2696.2,2695.9,0.299]
[1739979003841,3.70878,2696.3,2695.9,0.78191]
[1739979004056,3.70833,2696.7,2695.9,0.81900215]
[1739979004254,7.3702504,2696.8,2696.0,0.832]
[1739979004255,0.0992,2696.8,2696.0,0.832]
[1739979004400,0.0992,2696.8,2696.3,0.832]
[1739979004833,3.70847,2696.6,2696.3,1.2152]
[1739979005155,3.70887,2696.3,2696.0,0.8114]
[1739979005301,7.4172,2696.5,2696.0,0.8114]
[1739979005507,3.70867,2696.4,2696.0,0.8114]
[1739979005935,3.70856,2696.5,2696.0,0.8114]
[1739979006140,3.70831,2696.7,2696.0,0.8114]
[1739979006141,7.41667,2696.7,2696.0,0.8114]
[1739979006337,0.0992,2696.8,2696.1,4.191029]
[1739979006518,0.0992,2696.8,2696.3,3.70875]
[1739979006702,0.0992,2696.8,2696.5,0.7891]
[1739979007160,0.0992,2696.8,2696.6,3.70836]
[1739979007410,0.0992,2696.8,2696.7,4.79633]
[1739979007614,0.0992,2696.8,2696.7,5.646808]
[1739979009040,0.0992,2696.8,2696.7,1.938578]
[1739979009366,0.0992,2696.8,2696.7,5.646808]
[1739979009567,0.0992,2696.8,2696.7,8.68388269]
[1739979009767,0.0992,2696.8,2696.7,8.646808]
[1739979010005,0.0992,2696.8,2696.7,9.93883935]
[1739979010321,0.0992,2696.8,2696.7,13.43168975]
[1739979011604,0.0992,2696.8,2696.7,9.63983935]
[1739979011951,0.0992,2696.8,2696.7,9.38883935]
[1739979012673,0.0992,2696.8,2696.7,9.93883935]
[1739979013121,0.02268114,2696.8,2696.7,13.43168975]
[1739979014036,0.02268114,2696.8,2696.7,13.13268975]
[1739979014180,0.02268114,2696.8,2696.7,13.43168975]
[1739979014603,1.14e-06,2696.8,2696.7,13.43168975]
[1739979014926,3.18595353,2698.8,2696.7,13.43168975]
[1739979014927,0.7702,2698.5,2697.9,3.70658]
[1739979015132,3.70543,2698.8,2698.0,4.452168]
[1739979015280,3.7056,2698.7,2698.0,0.745728]
[1739979015485,3.7056,2698.7,2698.0,4.452158]
[1739979015728,3.7056,2698.7,2698.0,0.745728]
[1739979015934,4.51113,2698.8,2698.0,0.745728]
[1739979016140,3.70555,2698.7,2698.0,0.745728]
[1739979016336,3.7055,2698.7,2698.0,4.452128]
[1739979016487,5.68204304,2698.8,2698.0,4.452128]
[1739979016831,1.17091304,2698.8,2698.1,4.4965]
[1739979017031,3.70523,2698.9,2698.2,3.70614]
[1739979017333,3.4928504,2698.9,2698.1,0.7902]
[1739979017498,3.70535,2698.8,2698.1,0.7902]
[1739979017688,3.70551,2698.7,2698.1,0.7902]
[1739979017890,4.79588104,2698.7,2698.1,0.7902]
[1739979018321,3.70535,2698.8,2698.1,0.7902]
[1739979018764,3.70535,2698.8,2698.1,4.49648]
[1739979018967,3.70549,2698.7,2698.1,0.7902]
[1739979019174,3.70584,2698.5,2698.1,0.7902]
[1739979019376,3.70556,2698.7,2698.1,0.7902]
[1739979020002,3.70541,2698.8,2698.1,4.53351863]
[1739979020267,3.70528,2698.9,2698.2,3.70616]
[1739979020422,3.70528,2698.9,2698.1,1.64408686]
[1739979020619,0.7726,2699.5,2698.6,0.7868]
[1739979020819,0.7726,2699.5,2698.7,3.70542]
[1739979021174,0.7726,2699.5,2698.8,0.299]
[1739979021372,3.70402,2699.8,2698.8,0.299]
[1739979021373,3.70468,2699.3,2698.8,0.299]
[1739979021581,3.70448,2699.5,2698.8,0.299]
[1739979021759,3.70424,2699.7,2698.9,3.70513]
[1739979022013,0.818282,2699.7,2699.0,0.8099]
[1739979022125,23.680993,2700.0,2699.2,3.70477]
[1739979022473,23.680993,2700.0,2699.2,3.70471]
[1739979022474,19.977203,2700.0,2699.2,3.70471]
[1739979022674,19.977203,2700.0,2699.3,4.45959]
[1739979022831,26.1296753,2700.0,2699.3,4.45959]
[1739979023027,22.4258953,2700.0,2699.3,8.16417]
[1739979023335,19.977203,2700.0,2699.3,4.45964]
[1739979023740,19.977203,2700.0,2699.5,3.70431]
[1739979023955,19.977203,2700.0,2699.6,0.299]
[1739979024562,23.680903,2700.0,2699.6,0.299]
[1739979024780,3.70405,2699.8,2699.7,0.298]
[1739979024928,6.4425513,2699.8,2699.7,0.298]
[1739979025128,19.977203,2700.0,2699.7,0.298]
[1739979026162,19.977203,2700.0,2699.8,0.7677]
[1739979028148,19.977203,2700.0,2699.7,0.298]
[1739979029775,23.680923,2700.0,2699.7,0.298]
[1739979030448,3.70397,2699.8,2699.7,0.298]
[1739979030649,23.680923,2700.0,2699.7,0.298]
[1739979030851,2.4483523,2699.9,2699.7,0.298]
[1739979031051,3.70404,2699.8,2699.4,0.7559]
[1739979031272,3.7039,2699.9,2699.7,0.298]
[1739979031991,19.977203,2700.0,2699.7,0.298]
[1739979032880,27.384713,2700.0,2699.7,0.298]
[1739979033180,23.680933,2700.0,2699.7,0.298]
[1739979033395,26.4193783,2700.0,2699.7,0.298]
[1739979033583,19.977203,2700.0,2699.7,0.298]
[1739979033893,3.70391,2699.9,2699.7,0.298]
[1739979034192,19.977203,2700.0,2699.7,0.298]
[1739979034396,4.49917,2699.8,2699.7,0.298]
[1739979034893,3.70423,2699.7,2699.2,3.72886545]
[1739979035278,3.70425,2699.6,2699.3,0.298]
[1739979035484,3.70425,2699.6,2699.1,9.1071]
[1739979035485,3.70452,2699.4,2699.1,9.1071]
[1739979035801,4.4993,2699.8,2699.2,0.298]
[1739979035970,3.70428,2699.6,2699.2,0.298]
[1739979036164,4.074888,2699.5,2699.2,0.298]
[1739979036366,3.7048,2699.2,2699.1,8.326]
[1739979036670,3.7048,2699.2,2699.1,8.624]
[1739979037201,3.70454,2699.4,2699.1,8.624]
[1739979037399,3.70467,2699.3,2699.1,8.624]
[1739979037601,4.4826248,2699.3,2699.1,8.624]
[1739979037820,3.70421,2699.7,2699.1,8.624]
[1739979038104,3.70419,2699.7,2699.2,0.8025]
[1739979038408,7.40838,2699.7,2699.2,0.8025]
[1739979038625,0.8319,2699.9,2699.2,0.8025]
[1739979038776,3.70479,2699.3,2699.1,8.624]
[1739979039273,3.70446,2699.5,2699.1,8.624]
[1739979039474,3.70465,2699.4,2699.1,8.624]
[1739979039870,3.70446,2699.5,2699.1,8.624]
[1739979040177,3.70428,2699.6,2699.1,8.624]
[1739979040373,0.78621363,2699.6,2699.1,8.624]
[1739979040575,3.7048,2699.2,2699.1,8.624]
[1739979041570,3.70453,2699.4,2699.1,8.624]
[1739979042367,0.78621363,2699.6,2699.1,8.624]
[1739979042567,3.70425,2699.6,2699.1,8.624]
[1739979043175,3.70412,2699.7,2699.1,8.624]
[1739979043380,3.70405,2699.8,2699.2,0.7876]
[1739979043582,3.70411,2699.7,2699.2,0.7876]
[1739979043789,3.70437,2699.6,2699.2,0.7876]
[1739979043992,3.70434,2699.6,2699.2,0.7876]
[1739979044195,3.70426,2699.6,2699.2,0.7876]
[1739979044395,3.70397,2699.8,2699.2,0.7876]
[1739979044583,3.70427,2699.6,2699.2,0.7876]
[1739979045077,6.1553173,2699.8,2699.2,0.7876]
[1739979045269,6.1553173,2699.8,2699.3,0.03704363]
[1739979045500,6.1553173,2699.8,2699.2,0.7876]
[1739979045501,3.70401,2699.8,2699.2,4.49233]
[1739979045805,3.70398,2699.8,2699.2,0.7876]
[1739979046011,3.70398,2699.8,2699.2,4.49239]
[1739979046307,3.70398,2699.8,2699.2,0.7876]
[1739979046508,7.40804,2699.8,2699.2,0.7876]
[1739979046709,7.40804,2699.8,2699.2,4.49232]
[1739979047011,3.70392,2699.9,2699.3,3.70456]
[1739979048110,3.70408,2699.8,2699.2,8.19711]
[1739979048314,3.70397,2699.8,2699.2,0.7876]
[1739979048527,0.8236,2699.9,2699.3,0.298]
[1739979048811,3.70452,2699.4,2699.3,0.298]
[1739979049010,3.70476,2699.3,2699.1,8.326]
[1739979049310,3.70466,2699.3,2699.2,0.298]
[1739979049524,3.7048,2699.2,2699.1,8.326]
[1739979049699,3.7048,2699.2,2699.1,8.624]
[1739979049900,3.7048,2699.2,2699.1,8.326]
[1739979050211,3.70479,2699.3,2699.0,0.298]
[1739979050413,3.70486,2699.2,2699.0,0.298]
[1739979050579,3.70493,2699.1,2699.0,0.298]
[1739979050780,3.70486,2699.2,2698.7,0.7918]
[1739979050982,3.70511,2699.0,2698.8,0.298]
[1739979051180,3.70486,2699.2,2698.8,0.298]
[1739979051809,3.70504,2699.1,2698.8,0.298]
[1739979052422,3.70475,2699.3,2698.8,0.298]
[1739979052586,3.70482,2699.2,2698.8,0.298]
[1739979052796,0.8236,2699.4,2698.8,0.298]
[1739979053006,3.70503,2699.1,2698.8,0.298]
[1739979053204,3.70473,2699.3,2698.8,0.298]
[1739979053899,3.70516,2699.0,2698.8,0.298]
[1739979054223,3.70515,2699.0,2698.8,0.298]
[1739979054421,3.70515,2699.0,2698.9,0.298]
[1739979054922,3.70515,2699.0,2698.7,0.7918]
[1739979055229,3.70515,2699.0,2698.9,0.298]
[1739979055801,3.70495,2699.1,2698.8,0.298]
[1739979056133,3.7051,2699.0,2698.8,0.298]